Cogmind - Beta 15 @@@ ROGUE MODE // 2025.10.09 @ 18:26:08 Player: DietSnapple Result: Self-destructed Performance ------------- Evolutions (2) 1000 Regions Visited (5) 1000 Robots Destroyed (25) 125 Value Destroyed (567) 567 Prototype IDs (23) 460 Alien Tech Used (0) 0 Bonus (300) 300 TOTAL SCORE: 3452 Bonus ------- Aligned with FarCom 300 Cogmind --------- Core Integrity 304/550 Matter 32/300 Energy 100/100 System Corruption 0% Temperature Cool (0) Movement Core (400) Ox7 Location -8/Materials Parts ------- > --- POWER (1) -------- (None) > --- PROPULSION (4) --- (None) > --- UTILITY (4) ------ Large Storage Unit Signal Interpreter PSU Rigger > --- WEAPON (2) ------- (None) > --- INVENTORY (15) --- Light Treads Improved Heat Sink Small Storage Unit High-capacity Battery (250) Structural Scanner Salvage Targeting Computer Salvage Targeting Computer Assault Rifle Light Cannon Peak State ------------ > --- POWER ------------ Ion Engine > --- PROPULSION ------- Light Treads Light Treads > --- UTILITY ---------- Large Storage Unit Sensor Array Signal Interpreter > --- WEAPON ----------- Minigun Grenade Launcher > --- INVENTORY -------- Light Treads Improved Heat Sink Small Storage Unit High-capacity Battery Structural Scanner Salvage Targeting Computer Salvage Targeting Computer PSU Rigger Assault Rifle [Rating: 12] Favorites ----------- Power Ion Engine Engine Ion Engine Propulsion Light Treads Treads Light Treads Utility Small Storage Unit Device Sensor Array Storage Small Storage Unit Processor Targeting Computer Weapon Assault Rifle Ballistic Gun Assault Rifle Ballistic Cannon Light Cannon Launcher Grenade Launcher Build | -11 -10 -10 -10 -9 -8 ------- Run | Yrd Mat Min Exi Min Mat Slots Evolved 4 | . . . . . 4 Power . | . . . . . . Propulsion 2 | . . . . . 2 Utility 2 | . . . . . 2 Weapon . | . . . . . . Parts Attached 19 | 7 5 1 . 2 4 Power 2 | 1 1 . . . . Engine 2 | 1 1 . . . . Core . | . . . . . . Reactor . | . . . . . . Propulsion 5 | 2 2 . . 1 . Treads 5 | 2 2 . . 1 . Leg . | . . . . . . Wheel . | . . . . . . Hover . | . . . . . . Flight . | . . . . . . Utility 6 | 1 1 1 . . 3 Device 2 | . . . . . 2 Storage 2 | 1 . 1 . . . Processor 2 | . 1 . . . 1 Hackware . | . . . . . . Protection . | . . . . . . Artifact . | . . . . . . Weapon 6 | 3 1 . . 1 1 Energy Gun . | . . . . . . Energy Cannon . | . . . . . . Ballistic Gun 4 | 3 . . . . 1 Ballistic Cannon 1 | . 1 . . . . Launcher 1 | . . . . 1 . Special Weapon . | . . . . . . Impact Weapon . | . . . . . . Slashing Weapon . | . . . . . . Piercing Weapon . | . . . . . . Special Melee Weapon . | . . . . . . Unidentified Prototypes . | . . . . . . Parts Lost 5 | . . . . . 5 Power . | . . . . . . Propulsion 2 | . . . . . 2 Utility 1 | . . . . . 1 Weapon 2 | . . . . . 2 Highest Loss Streak 5 | . . . . . 5 To Critical Strikes 1 | . . . . . 1 Average Backups 8 | 2 7 8 9 9 9 Power . | . . . . . . Propulsion . | 1 . 1 1 1 1 Utility 4 | . 3 5 6 7 6 Weapon 2 | . 3 2 2 1 1 Tool/Special . | . . . . . . Unused Backups 10 | . 4 . . . 6 Power . | . . . . . . Propulsion 2 | . 2 . . . . Utility 5 | . . . . . 5 Weapon 3 | . 2 . . . 1 Tool/Special . | . . . . . . Average Slot Usage (%) 80 | . 89 71 71 82 66 Engine 13 | . 13 14 14 14 7 Treads 26 | . 27 28 28 28 16 Storage 13 | . 14 14 14 14 9 Processor 3 | . 5 . . . 8 Ballistic Gun 10 | . 21 . . . 3 Ballistic Cannon 8 | . 5 14 14 14 5 Launcher 2 | . . . . 11 7 Peak Build Rating 12 | 6 8 7 6 7 12 Average Rating 6 | 3 7 6 6 6 10 On Entrance 5 | . 6 6 6 6 7 Naked Turns . | . . . . . . Heaviest Build 32 | 14 15 28 28 31 32 Greatest Support 40 | 40 40 40 40 40 40 Greatest Overweight (x) 7 | . 3 . . . 7 Average Overweight (x) . | . . . . . . Largest Inventory Capacity 15 | 8 8 15 15 15 15 Average Capacity 11 | 6 8 11 15 15 15 Most Carried 11 | 4 8 9 10 10 11 Average Carried 8 | 2 7 8 9 9 9 Final Capacity 15 | 8 8 15 15 15 15 Final Carried 10 | 4 8 9 10 9 9 Class Distribution -------------------- 91% | Mutant 8% | Skirmisher Dominant Class ---------------- Mutant | -10/Materials Mutant | -10/Mines Mutant | -10/Exiles Mutant | -9/Mines Skirmisher | -8/Materials Resources | -11 -10 -10 -10 -9 -8 ----------- Run | Yrd Mat Min Exi Min Mat Matter Collected 590 | 226 261 65 . 24 14 Remotely . | . . . . . . Salvage Created 613 | . 530 24 . 46 13 Parts 43 | . 35 6 . 1 1 Haulers Intercepted 1 | . 1 . . . . Recyclers Shooed . | . . . . . . Parts Field Recycled . | . . . . . . Retrieved Matter . | . . . . . . Parts Self-Destructed . | . . . . . . Prevented . | . . . . . . Kills | -11 -10 -10 -10 -9 -8 ------- Run | Yrd Mat Min Exi Min Mat Combat Hostiles Destroyed 21 | . 16 3 . 2 . Guns 11 | . 11 . . . . Cannons 10 | . 5 3 . 2 . Classes Destroyed 5 | . 4 . . . 1 Worker 2 | . 2 . . . . Hauler 1 | . 1 . . . . Operator 1 | . . . . . 1 Swarmer 9 | . 6 3 . . . Grunt 12 | . 10 . . 2 . Best Kill Streak 5 | . 5 3 . 1 1 Combat Bots Only 4 | . 4 3 . 1 . Max Kills in Single Turn 2 | . 2 1 . 1 1 Gunslinging . | . . . . . . Exploded . | . . . . . . Melee . | . . . . . . Uniques/NPCs Destroyed . | . . . . . . Combat | -11 -10 -10 -10 -9 -8 -------- Run | Yrd Mat Min Exi Min Mat Hostile Shots Fired 165 | . 62 8 . 14 81 Missed 50 | . 20 1 . 4 25 Hits 115 | . 42 7 . 10 56 Projectile 115 | . 42 7 . 10 56 Critical Strikes 3 | . . . . . 3 Damage Taken 1371 | . 519 61 . 114 677 Core 424 | . 101 18 . 59 246 Absorbed by Shields . | . . . . . . Core Remaining (%) 64 | 100 . . . 28 . Volleys Fired 80 | . 56 8 . 14 2 Largest 2 | . 2 1 . 1 1 Hottest 40 | . 40 30 . 30 30 Shots Fired 114 | . 90 8 . 14 2 Gun 69 | . 68 . . . 1 Cannon 45 | . 22 8 . 14 1 Launcher . | . . . . . . Special . | . . . . . . Kinetic 114 | . 90 8 . 14 2 Thermal . | . . . . . . Explosive . | . . . . . . Electromagnetic . | . . . . . . Robot Hit Streak 13 | . 13 3 . 9 3 Robot Miss Streak 6 | . 1 6 . 2 . Penetration Max . | . . . . . . Secondary Targets 2 | . 2 . . . . Max Gunslinging Chain 1 | . 1 . . . . Shots Hit Robots 69 | . 53 3 . 11 2 Core Hits 35 | . 28 3 . 3 1 Critical Kills . | . . . . . . Critical Parts Destroyed . | . . . . . . Critical Strikes 1 | . 1 . . . . Blast 1 | . 1 . . . . Melee Attacks . | . . . . . . Impact . | . . . . . . Slashing . | . . . . . . Piercing . | . . . . . . Sneak Attacks . | . . . . . . Combat Hostiles . | . . . . . . Follow-up Attacks . | . . . . . . Damage Inflicted 993 | . 713 52 . 197 31 Guns 564 | . 549 . . . 15 Cannons 429 | . 164 52 . 197 16 Explosions . | . . . . . . Melee . | . . . . . . Ramming . | . . . . . . Kinetic 993 | . 713 52 . 197 31 Thermal . | . . . . . . Explosive . | . . . . . . Electromagnetic . | . . . . . . Impact . | . . . . . . Slashing . | . . . . . . Piercing . | . . . . . . Highest Corruption . | . . . . . . Average Corruption . | . . . . . . Corruption Purged . | . . . . . . Corruption Blocked . | . . . . . . Overload Shots . | . . . . . . Overflow Damage . | . . . . . . Projectiles . | . . . . . . Explosions . | . . . . . . Melee . | . . . . . . Knockbacks 3 | . 2 . . 1 . Impact . | . . . . . . Kinetic 3 | . 2 . . 1 . Secondary . | . . . . . . Self-Inflicted Damage . | . . . . . . Shots . | . . . . . . Rammed . | . . . . . . Targets Rammed . | . . . . . . Kicked . | . . . . . . Crushed . | . . . . . . Highest Temperature 10 | . 3 . . 10 . Average Temperature 2 | . 1 . . 2 . Received Heat Transfer 570 | . 219 . . 63 288 Siege Activations . | . . . . . . Martial Activations . | . . . . . . Shielding Activations . | . . . . . . Robots Disrupted . | . . . . . . Combat Hostiles . | . . . . . . Robots Corrupted . | . . . . . . Combat Hostiles . | . . . . . . Parts Fried . | . . . . . . Impact Corruptions . | . . . . . . Robots Melted . | . . . . . . Combat Hostiles . | . . . . . . Parts Melted . | . . . . . . Heat Transferred . | . . . . . . Parts Sabotaged . | . . . . . . Parts Stolen . | . . . . . . Parts Stripped . | . . . . . . Power Chain Reactions . | . . . . . . Alert | -11 -10 -10 -10 -9 -8 ------- Run | Yrd Mat Min Exi Min Mat Maximum Alert Level . | . . . . . . Low Security (%) 100 | 100 100 100 . 100 100 Level 1 . | . . . . . . Level 2 . | . . . . . . Level 3 . | . . . . . . Level 4 . | . . . . . . Level 5 . | . . . . . . High Security . | . . . . . . Max Security . | . . . . . . Peak Influence 187 | . 187 70 . 40 15 Initial 39 | . . 39 . . . Average 53 | . 89 24 . 7 . Influence Increases 607 | . 467 70 . 50 20 Destroy 0b10 Robot/C 420 | . 320 60 . 40 . Destroy 0b10 Robot/NC 20 | . 15 . . . 5 Destroy Leader 92 | . 72 10 . 10 . Disable Machine 15 | . 15 . . . . Lose Combat Pursuer 60 | . 45 . . . 15 Influence Decreases 607 | . 364 133 40 50 20 Entered New Map 104 | . . 64 40 . . Time Decay 488 | . 364 69 . 50 5 Lost Part 15 | . . . . . 15 Squads Dispatched 4 | . 3 . . . 1 Investigation 1 | . 1 . . . . Extermination . | . . . . . . Reinforcement 3 | . 2 . . . 1 Assault . | . . . . . . Garrison . | . . . . . . Intercept . | . . . . . . Searches Triggered . | . . . . . . Construction Impeded . | . . . . . . Haulers Reinforced . | . . . . . . Active Scanning Responses . | . . . . . . Cargo Convoy Interrupts . | . . . . . . Stealth | -11 -10 -10 -10 -9 -8 --------- Run | Yrd Mat Min Exi Min Mat Distress Signals 1 | . 1 . . . . Communications Jammed . | . . . . . . Distress Signals . | . . . . . . Times Spotted 42 | . 28 3 . 2 9 Peak Tracking Total 7 | . 6 3 . 2 7 Tactical Retreats 4 | . 3 . . . 1 Traps | -11 -10 -10 -10 -9 -8 ------- Run | Yrd Mat Min Exi Min Mat Traps Triggered 7 | . 7 . . . . Indirectly . | . . . . . . Trap Hack Attempts . | . . . . . . Triggered . | . . . . . . Disarmed . | . . . . . . Reprogrammed . | . . . . . . Reused . | . . . . . . Traps Extracted . | . . . . . . Installed . | . . . . . . Triggered . | . . . . . . Objects Rigged 1 | . . . . . 1 Exploded 1 | . . . . . 1 Machines | -11 -10 -10 -10 -9 -8 ---------- Run | Yrd Mat Min Exi Min Mat Machines Disabled 1 | . 1 . . . . Max in Single Turn 1 | . 1 . . . . Machines Repaired . | . . . . . . Machines Dismantled . | . . . . . . Machines Sabotaged . | . . . . . . Overloaded Fab Kills . | . . . . . . Hacking | -11 -10 -10 -10 -9 -8 --------- Run | Yrd Mat Min Exi Min Mat Machines Accessed 4 | . 2 . 1 . 1 Terminals 2 | . 1 . . . 1 Fabricators . | . . . . . . Repair Stations . | . . . . . . Recycling Units 1 | . 1 . . . . Scanalyzers . | . . . . . . Garrison Access . | . . . . . . Total Hacks 4 | . 2 . 1 . 1 Successful 2 | . 1 . 1 . . Failed 2 | . 1 . . . 1 Catastrophic 2 | . 1 . . . 1 Database Lockouts . | . . . . . . Manual 2 | . 1 . 1 . . Terminals 2 | . 1 . . . 1 Fabricators . | . . . . . . Repair Stations . | . . . . . . Recycling Units 1 | . 1 . . . . Scanalyzers . | . . . . . . Garrison Access . | . . . . . . Terminal Hacks 1 | . . . 1 . . Proto ID Catalog 1 | . . . 1 . . Fabricator Hacks . | . . . . . . Repair Station Hacks . | . . . . . . Recycling Unit Hacks 1 | . 1 . . . . Report Inventory 1 | . 1 . . . . Scanalyzer . | . . . . . . Garrison Access Hacks . | . . . . . . Unauthorized Hacks . | . . . . . . Terminals . | . . . . . . Fabricators . | . . . . . . Repair Stations . | . . . . . . Recycling Units . | . . . . . . Scanalyzers . | . . . . . . Garrison Access . | . . . . . . Data Cores Recovered . | . . . . . . Used . | . . . . . . Hacking Detections 2 | . 1 . . . 1 Full Trace Events . | . . . . . . Feedback Events . | . . . . . . Feedback Blocked . | . . . . . . Robot Schematics Acquired . | . . . . . . Robots Built . | . . . . . . Authchips . | . . . . . . Time . | . . . . . . Total Robot Build Rating . | . . . . . . Part Schematics Acquired . | . . . . . . Parts Built . | . . . . . . Authchips . | . . . . . . Time . | . . . . . . Total Part Build Rating . | . . . . . . Parts Repaired . | . . . . . . Time . | . . . . . . Parts Recycled . | . . . . . . Recycled Matter . | . . . . . . Retrieved Matter . | . . . . . . Retrieved Components . | . . . . . . Parts Scanalyzed . | . . . . . . Part Schematics Acquired . | . . . . . . Parts Damaged . | . . . . . . Bothacking | -11 -10 -10 -10 -9 -8 ------------ Run | Yrd Mat Min Exi Min Mat Used RIF Installer . | . . . . . . Robots Hacked . | . . . . . . Non-combat . | . . . . . . Combat . | . . . . . . Robot Hacks Applied . | . . . . . . Relay Couplers Released . | . . . . . . Fabnet Peak Effective % . | . . . . . . Robots Rewired . | . . . . . . Allies Hacked . | . . . . . . Hacks Repelled . | . . . . . . Allies | -11 -10 -10 -10 -9 -8 -------- Run | Yrd Mat Min Exi Min Mat Total Allies . | . . . . . . Largest Group . | . . . . . . Highest-Rated Group . | . . . . . . Highest-Rated Ally . | . . . . . . Total Orders . | . . . . . . Ally Attacks . | . . . . . . Total Damage . | . . . . . . Kills . | . . . . . . Allies Corrupted . | . . . . . . Allies Melted . | . . . . . . Intel | -11 -10 -10 -10 -9 -8 ------- Run | Yrd Mat Min Exi Min Mat Active Infowar (turns) 211 | . . . . . 211 Sensors 211 | . . . . . 211 Robot Analysis Total . | . . . . . . Derelict Logs Recovered 2 | . . 2 . . . Drone Launches . | . . . . . . Drone Recoveries . | . . . . . . Exploration | -11 -10 -10 -10 -9 -8 ------------- Run | Yrd Mat Min Exi Min Mat Turns Passed 2376 | 131 1075 223 410 314 223 Spaces Moved 1181 | 74 547 129 245 72 114 Core 11 | 8 2 . . . 1 Treads 1170 | 66 545 129 245 72 113 Legs . | . . . . . . Wheels . | . . . . . . Hover . | . . . . . . Flight . | . . . . . . Fastest Speed 50 | 50 150 160 160 160 160 Average Speed 159 | 148 160 160 160 160 165 Slowest Speed 400 | 160 200 160 160 160 400 Overloaded Moves . | . . . . . . Propulsion Burnouts . | . . . . . . Robots Hopped . | . . . . . . Potential Cave-ins . | . . . . . . Cave-ins Triggered . | . . . . . . Exploration Rate (%) 35 | 5 78 32 61 27 11 Regions Visited 5 Branch Regions 3 Pre-discovered Areas 1 | . . 1 . . . Known Exits Taken 1 | . . 1 . . . Unknown Exits Taken 4 | 1 1 . 1 1 . Scrap Searched 1 | . . 1 . . . Spaces Dug . | . . . . . . Terrain Destroyed . | . . . . . . Melee . | . . . . . . Projectile . | . . . . . . AOE . | . . . . . . Terrain Rammed . | . . . . . . Walls Destroyed . | . . . . . . Machines Disabled . | . . . . . . Actions | -11 -10 -10 -10 -9 -8 --------- Run | Yrd Mat Min Exi Min Mat Total 1550 | 92 655 138 263 256 146 Wait 234 | 9 18 . 18 169 20 Move 1176 | 73 546 128 244 71 114 Hop . | . . . . . . Pick Up 18 | 3 11 . 1 . 3 Fast Attach 18 | 6 11 1 . . . Attach 4 | . . . . 1 3 Detach 2 | . . 1 . . 1 Swap 7 | 1 4 . . 1 1 Drop 10 | . 9 . . . 1 Fire 80 | . 56 8 . 14 2 Melee . | . . . . . . Ram . | . . . . . . Kick . | . . . . . . Crush . | . . . . . . Escape Stasis . | . . . . . . Rewire . | . . . . . . Trap 1 | . . . . . 1 Miscellaneous . | . . . . . . Route ------- -11/Scrapyard -10/Materials (discovered 4 exits: [*Mat x2] / [*Min x2]) -10/Mines -10/Exiles (discovered 2 exits: [*Min x2]) -9/Mines -8/Materials History --------- Turn | Location | Event 13 | -11/Scrapyard | Discovered new exit (range 14) 132 | -11/Scrapyard | Entered Materials 313 | -10/Materials | Build established: Mutant 365 | -10/Materials | Discovered new exit (range 5) 390 | -10/Materials | Discovered new exit (range 10) 748 | -10/Materials | Discovered new exit (range 9) 1047 | -10/Materials | Discovered new exit (range 16) 1207 | -10/Materials | Entered Mines 1236 | -10/Mines | Learned location of Mines (-9) 1244 | -10/Mines | Identified exit to Exiles 1419 | -10/Mines | Deemed a non-threat by the Exiles lab entrance 1430 | -10/Mines | Entered Exiles 1451 | -10/Exiles | Discovered new exit (range 15) 1474 | -10/Exiles | Met 8R-AWN 1499 | -10/Exiles | Met EX-HEX 1547 | -10/Exiles | Met EX-BIN 1571 | -10/Exiles | Aligned with FarCom system 1573 | -10/Exiles | Given EX-Vault access code 1622 | -10/Exiles | Opened EX-Vault 1637 | -10/Exiles | Found PSU Rigger 1670 | -10/Exiles | Warned to stay clear of 0b10 Research branches 1688 | -10/Exiles | Exiles lab attacked by MAIN.C 1827 | -10/Exiles | Discovered new exit (range 10) 1840 | -10/Exiles | Left Exiles lab with PSU Rigger 1840 | -10/Exiles | Entered Mines 1841 | -9/Mines | Assembled infested the area 1842 | -9/Mines | Core integrity fell below 50% 2126 | -9/Mines | Discovered new exit (range 10) 2154 | -9/Mines | Entered Materials 2154 | -8/Materials | Evolved 4 slots: Propulsion x2, Utility x2 2377 | -8/Materials | Self-destructed Last Messages --------------- 02347_ Grenade Launcher destroyed. 02347_ Critical hit (Burn: +37). 02350_ K-01 Serf collects debris. 02352_ S-10 Pest destroyed. 02355_ R-06 Scavenger collects Lgt. Ion Engine. 02358_ Lgt. Treads destroyed. 02358_ Acquired 13 matter. 02364_ R-06 Scavenger collects Lgt. Ion Engine. 02365_ Acquired 1 matter. 02368_ Minigun destroyed. 02369_ R-06 Scavenger collects Flight Unit. 02369_ Critical hit (Destroy). 02369_ Lgt. Treads destroyed. 02370_ Sensor Array destroyed. 02371_ Dropped Ion Engine. 02372_ Rigged Ion Engine with PSU Rigger. 02373_ Rigged Ion Engine explodes. 02373_ S-10 Pest destroyed. 02373_ Terminal disabled. 02374_ U-05 Engineer lays Concrete. Map ----- +----------------------------------------------------+ | ?????????????????????????????????????????????????? | | ?????????????????????????????????????????????????? | | ?????????????????????????????????????????????????? | | ?????????????????????????????????????????????????? | | ?????????????????????????????????????????????????? | | ?????????????????????????????????????????????????? | | ?????????????????????????????????????????????????? | | ?????????????????????????????????????????????????? | | ???????????????????????????????????????????? ???? | | ????????????????????????????????######?##### #??? | | ????????????????????????? ???? #??? | | ????????????????????????? ???? #??? | | ????????????????????????# ???? +??? | | ????????????????????????# ?? #??? | | ????????????????????????# ?? #??? | | ????????????????????????# ? #??? | | ????????????????????????# """ """ """ #??? | | ????????????????????????# """ """ """ #??? | | ????????????????????????# """ """ """ #??? | | ????????????????????????+ """ """ """ #??? | | ????????????????????????# """ """ """ #??? | | ????????????????????????# ##?? | | ????????????????????????# #?? | | ????????????????????????# """ """ #?? | | ????????????????????????# """ """ #?? | | ????????????????????????#@ """ "" ####### | | ????????????????????????# %[ """ """ # | | ???????????????????????## """ "" # | | ???????????????????????# u g + """ | | ???????????????????????# " srgg # """"" | | ???????????????????????# m # """"" | | ???????????????????????# # """"" | | ???????????????????????# # """ | | ???????????????????????###+######^ # | | ???????????????????????? ?????#^^s!% "# | | ?????????????????????? ?????# = T####### | | ?????????????????????# ? ?????# = "#?????? | | ?????????????????????#?? ?????# #?????? | | ????????????????????????" ??????# #?????? | | ????????????????????????T ?????#####/#######?????? | | ???????????????????????????????# #???????? | | ???????????????????????????????# #???????? | | ???????????????????????????????# || #???????? | | ???????????????????????????????# || #???????? | | ???????????????????????????????# #???????? | | ???????????????????????????????# #???????? | | ???????????????????????????????# #???????? | | ???????????????????????????????# #???????? | | ???????????????????????????????######+####???????? | | ????????????????????????????????????# #??????????? | +----------------------------------------------------+ Best States ------------- Heat Dissipation 31 Energy Generation 10 Energy Capacity 250 Matter Stores 300 Matter Capacity 300 Sight Range 16 Robot Scan Range 14 Terrain Scan Density 10 Evasion (%) 40 Targeting Accuracy 5 Recoil Reduction 2 Item Schematics ----------------- None Robot Schematics ------------------ None Fabricated ------------ Nothing Repaired ---------- Nothing Alien Tech Used ----------------- None Achievements -------------- None Challenges ------------ None Game ------ Seed GravitonThiefStabilizer Manual? 0 Play Time 00:16:11 Cumulative 28.4 hours Start 2025.10.09 @ 17:27:43 End 2025.10.09 @ 18:26:08 Sessions 3 Manual Loads 0 Difficulty Rogue Special Mode None Game No. 76 Rogue 69 Adventurer 7 Explorer 0 Win Type - Total 0 Types 0/0/0/0/0/0/0/0/0/0 Lore% 5 Gallery% 26 Achievement% 26 Wizard Run 0 Options --------- Layout 0 ASCII 0 Keyboard 1 Movement Vi Keybinds 0 Fullscreen 1 Font 18/SmallcapsGlow Map View 112x50 Zoom Use 0% Tactical HUD 1 Map Filters NONE Filters NONE Steam 1 RUN: 5efd89bc-9875-4c42-8281-2e5f1cd7abb8